fUSD/lending_fUSD_20250522
["ID","MTS","AMOUNT","RATE_DAILY","PERIOD"]
[361975496,1747915850095,-420.0,0.0003315,5]
[361975498,1747915850105,-420.0,0.0003315,5]
[361975500,1747915850116,-451.8,0.0003315,5]
[361975502,1747915850125,-420.0,0.0003315,5]
[361975504,1747915850135,-420.0,0.0003315,5]
[361975505,1747915850144,-567.83,0.0003315,5]
[361975507,1747915850154,-1154.88,0.0003315,5]
[361975510,1747915850164,-420.0,0.0003315,5]
[361975512,1747915850174,-420.0,0.0003315,5]
[361975514,1747915850183,-420.0,0.0003315,5]
[361975515,1747915850193,-651.1,0.0003315,5]
[361975518,1747915850203,-831.36,0.0003315,5]
[361975520,1747915850212,-420.0,0.0003315,5]
[361975522,1747915850222,-850.48,0.0003315,5]
[361975565,1747915850643,-878.43,0.0003315,5]
[361975567,1747915850653,-420.0,0.0003315,5]
[361975569,1747915850663,-420.0,0.0003315,5]
[361975571,1747915850672,-1114.61,0.0003315,5]
[361975573,1747915850682,-420.0,0.0003315,5]
[361975575,1747915850691,-497.06,0.0003315,5]
[361975577,1747915850702,-420.0,0.0003315,5]
[361975579,1747915850712,-420.0,0.0003315,5]
[361975581,1747915850723,-612.49,0.0003315,5]
[361975583,1747915850734,-420.0,0.0003315,5]
[361975585,1747915850743,-770.45,0.0003315,5]
[361975587,1747915850754,-420.0,0.0003315,5]
[361975588,1747915850763,-487.65,0.0003315,5]
[361975589,1747915850773,-462.57,0.0003315,5]
[361975590,1747915850783,-420.0,0.0003315,5]
[361975591,1747915850794,-420.0,0.0003315,5]
[361975592,1747915850803,-809.55,0.0003315,5]
[361975593,1747915850813,-605.62,0.0003315,5]
[361975594,1747915850823,-927.56,0.0003315,5]
[361975595,1747915850833,-422.66,0.0003315,5]
[361975597,1747915850843,-420.0,0.0003315,5]
[361975598,1747915850852,-937.96,0.0003315,5]
[361975600,1747915850862,-420.0,0.0003315,5]
[361975602,1747915850872,-420.0,0.0003315,5]
[361975605,1747915850882,-420.0,0.0003315,5]
[361975606,1747915850893,-420.0,0.0003315,5]
[361975608,1747915850903,-620.01,0.0003315,5]
[361975610,1747915850913,-211.41,0.0003315,5]
[361975612,1747915850923,-848.16,0.0003315,5]
[361975614,1747915850933,-914.01,0.0003315,5]
[361975617,1747915850942,-584.56,0.0003315,5]
[361975618,1747915850952,-1030.97,0.0003315,5]
[361975620,1747915850961,-420.0,0.0003315,5]
[361975622,1747915850972,-1014.39,0.0003315,5]
[361975625,1747915850981,-420.0,0.0003315,2]
[361975627,1747915850991,-420.0,0.0003315,5]
[361975629,1747915851001,-649.63,0.0003315,5]
[361975631,1747915851010,-420.0,0.0003315,5]
[361975633,1747915851022,-420.0,0.0003315,5]
[361975634,1747915851032,-443.65,0.0003315,5]
[361975636,1747915851042,-564.75980907,0.0003315,5]
[361975638,1747915851051,-420.0,0.0003315,5]
[361975640,1747915851061,-420.0,0.0003315,5]
[361975642,1747915851071,-828.84,0.0003315,5]
[361975644,1747915851081,-523.12,0.0003315,5]
[361975647,1747915851091,-420.0,0.0003315,5]
[361975649,1747915851112,-420.0,0.0003315,5]
[361975651,1747915851135,-420.0,0.0003315,5]
[361975652,1747915851146,-595.31,0.0003315,5]
[361975654,1747915851158,-420.0,0.0003315,5]
[361975656,1747915851168,-420.0,0.0003315,5]
[361975658,1747915851179,-420.0,0.0003315,5]
[361975660,1747915851190,-1038.51,0.0003315,5]
[361975662,1747915851200,-420.0,0.0003315,5]
[361975664,1747915851211,-715.67,0.0003315,5]
[361975666,1747915851220,-1477.9,0.0003315,5]
[361975668,1747915851230,-420.0,0.0003315,5]
[361975670,1747915851240,-420.0,0.0003315,5]
[361975672,1747915851250,-420.0,0.0003315,5]
[361975674,1747915851259,-1070.16,0.0003315,5]
[361975676,1747915851269,-534.08597471,0.0003315,5]
[361975678,1747915851278,-565.59,0.0003315,5]
[361975680,1747915851288,-420.0,0.0003315,5]
[361975682,1747915851299,-922.79,0.0003315,5]
[361975684,1747915851313,-300.08848116,0.0003315,5]
[361975685,1747915851323,-730.04,0.0003315,5]
[361975688,1747915851336,-424.6,0.0003315,5]
[361975689,1747915851346,-970.52,0.0003315,5]
[361975692,1747915851356,-965.5,0.0003315,5]
[361975693,1747915851366,-420.0,0.0003315,5]
[361975696,1747915851376,-420.0,0.0003315,5]
[361975698,1747915851386,-657.98,0.0003315,5]
[361975699,1747915851395,-770.55,0.0003315,5]
[361975701,1747915851406,-1238.36,0.0003315,5]
[361975703,1747915851416,-598.97,0.0003315,5]
[361975705,1747915851426,-420.0,0.0003315,5]
[361975707,1747915851435,-964.52,0.0003315,5]
[361975710,1747915851445,-420.0,0.0003315,5]
[361975711,1747915851455,-815.94,0.0003315,5]
[361975714,1747915851465,-420.0,0.0003315,5]
[361975716,1747915851475,-1131.2,0.0003315,5]
[361975718,1747915851485,-776.57,0.0003315,5]
[361975720,1747915851495,-420.0,0.0003315,5]
[361975722,1747915851504,-544.26,0.0003315,5]
[361975724,1747915851515,-420.0,0.0003315,5]
[361975725,1747915851524,-794.37,0.0003315,5]
[361975728,1747915851534,-857.83,0.0003315,5]
[361975730,1747915851545,-459.62524872,0.0003315,5]
[361975731,1747915851554,-1029.11,0.0003315,5]
[361975733,1747915851564,-420.0,0.0003315,5]
[361975735,1747915851573,-541.85,0.0003315,5]
[361975737,1747915851583,-500.0,0.0003315,30]
[361975739,1747915851592,-420.0,0.0003315,5]
[361975741,1747915851602,-774.93,0.0003315,5]
[361975743,1747915851612,-420.0,0.0003315,5]
[361975745,1747915851621,-823.0,0.0003315,5]
[361975747,1747915851630,-1074.82,0.0003315,5]
[361975749,1747915851640,-805.03,0.0003315,5]
[361975751,1747915851650,-665.44,0.0003315,5]
[361975753,1747915851660,-694.75,0.0003315,5]
[361975754,1747915851669,-2023.62,0.0003315,5]
[361975755,1747915851679,-565.48,0.0003315,5]
[361975756,1747915851689,-420.0,0.0003315,5]
[361975757,1747915851699,-420.0,0.0003315,5]
[361975758,1747915851710,-500.56,0.0003315,5]
[361975760,1747915851723,-455.19,0.0003315,5]
[361975762,1747915851733,-420.0,0.0003315,5]
[361975764,1747915851743,-420.0,0.0003315,5]
[361975766,1747915851753,-817.28,0.0003315,5]
[361975767,1747915851762,-420.0,0.0003315,5]
[361975768,1747915851772,-420.0,0.0003315,5]
[361975769,1747915851782,-500.02,0.0003315,5]
[361975770,1747915851793,-1017.68,0.0003315,5]
[361975771,1747915851804,-577.24,0.0003315,5]
[361975772,1747915851813,-460.25,0.0003315,5]
[361975773,1747915851823,-1320.96,0.0003315,5]
[361975774,1747915851832,-420.0,0.0003315,5]
[361975775,1747915851842,-420.0,0.0003315,5]
[361975776,1747915851852,-784.63,0.0003315,5]
[361975777,1747915851861,-420.0,0.0003315,5]
[361975778,1747915851871,-420.0,0.0003315,5]
[361975779,1747915851881,-1092.96,0.0003315,5]
[361975780,1747915851890,-523.82,0.0003315,5]
[361975781,1747915851900,-420.0,0.0003315,5]
[361975782,1747915851910,-420.0,0.0003315,5]
[361975783,1747915851920,-420.0,0.0003315,5]
[361975784,1747915851929,-420.0,0.0003315,5]
[361975785,1747915851939,-604.27,0.0003315,5]
[361975786,1747915851950,-420.0,0.0003315,5]
[361975787,1747915851960,-785.26,0.0003315,5]
[361975788,1747915851969,-852.96,0.0003315,5]
[361975789,1747915851979,-420.0,0.0003315,5]
[361975790,1747915851989,-420.0,0.0003315,5]
[361975791,1747915851998,-1138.7,0.0003315,5]
[361975792,1747915852008,-1553.21,0.0003315,5]
[361975793,1747915852017,-420.0,0.0003315,5]
[361975794,1747915852027,-420.0,0.0003315,5]
[361975795,1747915852036,-420.0,0.0003315,10]
[361975796,1747915852047,-420.0,0.0003315,5]
[361975797,1747915852056,-952.5,0.0003315,5]
[361975798,1747915852065,-691.6,0.0003315,5]
[361975799,1747915852075,-420.0,0.0003315,5]
[361975800,1747915852085,-483.86,0.0003315,5]
[361975801,1747915852094,-1169.26,0.0003315,5]
[361975802,1747915852104,-605.48,0.0003315,5]
[361975803,1747915852114,-1783.11,0.0003315,5]
[361975804,1747915852123,-420.0,0.0003315,5]
[361975805,1747915852133,-420.0,0.0003315,5]
[361975806,1747915852143,-817.5,0.0003315,5]
[361975807,1747915852153,-420.0,0.0003315,5]
[361975808,1747915852163,-420.0,0.0003315,5]
[361975809,1747915852173,-420.0,0.0003315,5]
[361975810,1747915852182,-982.96,0.0003315,5]
[361975812,1747915852191,-937.08,0.0003315,5]
[361975813,1747915852200,-904.99,0.0003315,5]
[361975814,1747915852210,-1089.07,0.0003315,5]
[361975815,1747915852219,-1986.65,0.0003315,5]
[361975816,1747915852229,-420.0,0.0003315,5]
[361975817,1747915852239,-420.0,0.0003315,5]
[361975818,1747915852249,-487.25,0.0003315,5]
[361975819,1747915852259,-151.0,0.0003315,7]
[361975820,1747915852269,-151.0,0.0003315,7]
[361975821,1747915852279,-420.0,0.0003315,5]
[361975822,1747915852288,-151.0,0.0003315,7]
[361975823,1747915852299,-913.62,0.0003315,5]
[361975824,1747915852308,-758.01,0.0003315,5]
[361975825,1747915852318,-693.26,0.0003315,5]
[361975826,1747915852328,-736.41,0.0003315,5]
[361975827,1747915852338,-420.0,0.0003315,5]
[361975828,1747915852347,-452.36,0.0003315,5]
[361975829,1747915852357,-420.0,0.0003315,5]
[361975830,1747915852366,-581.73,0.0003315,5]
[361975831,1747915852376,-420.0,0.0003315,5]
[361975832,1747915852386,-420.0,0.0003315,5]
[361975833,1747915852396,-420.0,0.0003315,5]
[361975834,1747915852405,-420.0,0.0003315,5]
[361975835,1747915852415,-420.0,0.0003315,5]
[361975836,1747915852424,-420.0,0.0003315,5]
[361975837,1747915852434,-420.0,0.0003315,5]
[361975838,1747915852444,-420.0,0.0003315,5]
[361975839,1747915852453,-420.0,0.0003315,5]
[361975840,1747915852463,-844.97,0.0003315,5]
[361975841,1747915852472,-420.0,0.0003315,5]
[361975842,1747915852482,-420.0,0.0003315,5]
[361975843,1747915852491,-420.0,0.0003315,5]
[361975844,1747915852501,-420.0,0.0003315,5]
[361975845,1747915852511,-2355.54,0.0003315,5]
[361975846,1747915852521,-1344.75,0.0003315,5]
[361975847,1747915852530,-420.0,0.0003315,5]
[361975848,1747915852540,-420.0,0.0003315,5]
[361975849,1747915852549,-420.0,0.0003315,5]
[361975850,1747915852559,-886.64,0.0003315,5]
[361975851,1747915852568,-420.0,0.0003315,5]
[361975852,1747915852578,-420.0,0.0003315,5]
[361975853,1747915852587,-420.0,0.0003315,5]
[361975854,1747915852603,-420.0,0.0003315,5]
[361975855,1747915852613,-1149.77,0.0003315,5]
[361975856,1747915852623,-499.86,0.0003315,5]
[361975857,1747915852634,-420.0,0.0003315,5]
[361975858,1747915852644,-638.15,0.0003315,5]
[361975859,1747915852655,-508.46,0.0003315,5]
[361975860,1747915852664,-825.1,0.0003315,5]
[361975861,1747915852674,-420.0,0.0003315,5]
[361975862,1747915852685,-420.0,0.0003315,5]
[361975863,1747915852694,-897.75,0.0003315,5]
[361975864,1747915852704,-420.0,0.0003315,5]
[361975865,1747915852717,-1237.18,0.0003315,5]
[361975866,1747915852727,-420.0,0.0003315,5]
[361975867,1747915852737,-420.0,0.0003315,5]
[361975868,1747915852747,-420.0,0.0003315,5]
[361975869,1747915852759,-420.0,0.0003315,5]
[361975870,1747915852768,-420.0,0.0003315,5]
[361975871,1747915852778,-420.0,0.0003315,5]
[361975872,1747915852788,-543.23,0.0003315,5]
[361975873,1747915852800,-708.1,0.0003315,5]
[361975874,1747915852810,-420.0,0.0003315,5]
[361975875,1747915852820,-690.39,0.0003315,5]
[361975876,1747915852830,-420.0,0.0003315,5]
[361975877,1747915852840,-420.0,0.0003315,5]
[361975878,1747915852850,-549.37,0.0003315,5]
[361975879,1747915852861,-420.0,0.0003315,5]
[361975880,1747915852871,-420.0,0.0003315,5]
[361975881,1747915852882,-994.35,0.0003315,5]
[361975882,1747915852892,-807.26,0.0003315,5]
[361975883,1747915852903,-420.0,0.0003315,5]
[361975884,1747915852914,-420.0,0.0003315,5]
[361975885,1747915852924,-420.0,0.0003315,5]
[361975886,1747915852934,-420.0,0.0003315,5]
[361975887,1747915852944,-564.34,0.0003315,5]
[361975888,1747915852953,-479.96,0.0003315,5]
[361975889,1747915852963,-420.0,0.0003315,5]
[361975890,1747915852973,-420.0,0.0003315,5]
[361975891,1747915852982,-565.39,0.0003315,5]
[361975892,1747915852992,-434.44,0.0003315,5]
[361975893,1747915853003,-769.79,0.0003315,5]
[361975894,1747915853014,-482.46125782,0.0003315,5]
[361975895,1747915853024,-772.6,0.0003315,5]
[361975896,1747915853034,-420.0,0.0003315,5]
[361975897,1747915853045,-420.0,0.0003315,5]
[361975898,1747915853055,-420.0,0.0003315,5]
[361975899,1747915853064,-531.03,0.0003315,5]
[361975900,1747915853074,-822.21,0.0003315,5]
[361975901,1747915853083,-612.69,0.0003315,5]
[361975902,1747915853094,-630.17,0.0003315,5]
[361975903,1747915853104,-1036.02,0.0003315,5]
[361975904,1747915853114,-610.94,0.0003315,5]
[361975905,1747915853123,-420.79,0.0003315,5]
[361975906,1747915853133,-948.6,0.0003315,5]
[361975907,1747915853144,-508.36,0.0003315,5]
[361975908,1747915853154,-538.79,0.0003315,5]
[361975909,1747915853166,-430.39,0.0003315,5]
[361975910,1747915853177,-420.0,0.0003315,5]
[361975911,1747915853187,-420.0,0.0003315,5]
[361975912,1747915853338,-511.96,0.0003315,5]
[361975913,1747915853348,-420.0,0.0003315,5]
[361975914,1747915853357,-656.86,0.0003315,5]
[361975915,1747915853366,-536.47,0.0003315,5]
[361975916,1747915853375,-420.0,0.0003315,5]
[361975917,1747915853384,-2000.0,0.0003315,5]
[361975918,1747915853393,-420.0,0.0003315,5]
[361975919,1747915853402,-420.0,0.0003315,5]
[361975920,1747915853411,-777.18,0.0003315,5]
[361975921,1747915853420,-1062.19,0.0003315,5]
[361975922,1747915853429,-420.0,0.0003315,5]
[361975923,1747915853438,-420.0,0.0003315,5]
[361975924,1747915853447,-420.0,0.0003315,5]
[361975925,1747915853456,-1773.87,0.0003315,5]
[361975926,1747915853465,-425.72,0.0003315,5]
[361975927,1747915853473,-420.0,0.0003315,5]
[361975928,1747915853483,-733.6,0.0003315,5]
[361975929,1747915853492,-420.0,0.0003315,5]
[361975930,1747915853501,-865.47,0.0003315,5]
[361975931,1747915853509,-420.0,0.0003315,5]
[361975932,1747915853519,-420.0,0.0003315,5]
[361975933,1747915853528,-420.0,0.0003315,5]
[361975934,1747915853537,-429.79,0.0003315,5]
[361975935,1747915853547,-592.8,0.0003315,5]
[361975936,1747915853556,-862.71,0.0003315,5]
[361975937,1747915853565,-2426.68,0.0003315,5]
[361975938,1747915853574,-420.0,0.0003315,5]
[361975939,1747915853583,-420.0,0.0003315,5]
[361975940,1747915853592,-420.0,0.0003315,5]
[361975941,1747915853602,-420.0,0.0003315,5]
[361975942,1747915853611,-420.0,0.0003315,5]
[361975943,1747915853621,-766.67,0.0003315,5]
[361975944,1747915853630,-420.0,0.0003315,5]
[361975945,1747915853639,-420.0,0.0003315,5]
[361975946,1747915853648,-807.17,0.0003315,5]
[361975947,1747915853657,-556.51,0.0003315,5]
[361975948,1747915853667,-798.14,0.0003315,5]
[361975949,1747915853676,-582.97,0.0003315,5]
[361975950,1747915853686,-420.0,0.0003315,5]
[361975951,1747915853695,-420.0,0.0003315,5]
[361975952,1747915853704,-779.32,0.0003315,5]
[361975953,1747915853714,-420.0,0.0003315,5]
[361975954,1747915853724,-574.7,0.0003315,5]
[361975955,1747915853733,-523.69,0.0003315,5]
[361975956,1747915853742,-1017.67,0.0003315,5]
[361975957,1747915853752,-420.0,0.0003315,5]
[361975958,1747915853761,-420.0,0.0003315,5]
[361975959,1747915853770,-1304.54,0.0003315,5]
[361975960,1747915853779,-420.0,0.0003315,5]
[361975961,1747915853788,-420.0,0.0003315,5]
[361975962,1747915853800,-420.0,0.0003315,5]
[361975963,1747915853810,-420.0,0.0003315,5]
[361975964,1747915853819,-654.85,0.0003315,5]
[361975965,1747915853828,-420.0,0.0003315,5]
[361975966,1747915853837,-420.0,0.0003315,5]
[361975967,1747915853846,-887.37,0.0003315,5]
[361975968,1747915853855,-1324.34,0.0003315,5]
[361975969,1747915853864,-708.78,0.0003315,5]
[361975970,1747915853873,-420.0,0.0003315,5]
[361975971,1747915853882,-663.26,0.0003315,5]
[361975972,1747915853891,-421.91,0.0003315,5]
[361975973,1747915853900,-434.1,0.0003315,5]
[361975974,1747915853910,-420.0,0.0003315,5]
[361975975,1747915853919,-420.0,0.0003315,5]
[361975976,1747915853928,-173.65172756,0.0003315,5]
[361975977,1747915853938,-681.13,0.0003315,5]
[361975978,1747915853947,-420.0,0.0003315,5]
[361975979,1747915853956,-547.95,0.0003315,5]
[361975980,1747915853966,-470.3,0.0003315,5]
[361975981,1747915853975,-480.3,0.0003315,5]
[361975982,1747915853984,-762.29,0.0003315,5]
[361975983,1747915853996,-1016.78,0.0003315,5]
[361975984,1747915854005,-420.0,0.0003315,5]
[361975985,1747915854014,-715.08,0.0003315,5]
[361975986,1747915854024,-420.0,0.0003315,5]
[361975987,1747915854033,-564.0856113,0.0003315,5]
[361975988,1747915854043,-1422.25,0.0003315,5]
[361975989,1747915854053,-420.0,0.0003315,5]
[361975990,1747915854062,-420.0,0.0003315,5]
[361975991,1747915854071,-420.0,0.0003315,5]
[361975992,1747915854082,-982.39,0.0003315,5]
[361975993,1747915854092,-420.0,0.0003315,5]
[361975994,1747915854101,-420.0,0.0003315,5]
[361975995,1747915854111,-420.0,0.0003315,5]
[361975996,1747915854120,-1139.56,0.0003315,5]
[361975997,1747915854129,-420.0,0.0003315,5]
[361975998,1747915854138,-420.0,0.0003315,5]
[361975999,1747915854148,-420.0,0.0003315,5]
[361976000,1747915854157,-1291.09,0.0003315,5]
[361976001,1747915854167,-420.0,0.0003315,5]
[361976002,1747915854176,-420.0,0.0003315,5]
[361976003,1747915854186,-420.0,0.0003315,5]
[361976004,1747915854196,-2831.06,0.0003315,5]
[361976005,1747915854205,-300.0,0.0003315,5]
[361976006,1747915854215,-420.0,0.0003315,5]
[361976007,1747915854224,-420.0,0.0003315,5]
[361976008,1747915854235,-420.0,0.0003315,5]
[361976009,1747915854245,-623.17,0.0003315,5]
[361976010,1747915854254,-420.0,0.0003315,5]
[361976011,1747915854263,-802.64,0.0003315,5]
[361976012,1747915854272,-420.0,0.0003315,5]
[361976013,1747915854282,-1118.09,0.0003315,5]
[361976014,1747915854291,-420.0,0.0003315,5]
[361976015,1747915854301,-420.0,0.0003315,5]
[361976016,1747915854310,-553.41,0.0003315,5]
[361976017,1747915854319,-979.93,0.0003315,5]
[361976018,1747915854329,-781.8,0.0003315,5]
[361976019,1747915854339,-614.35,0.0003315,5]
[361976020,1747915854348,-420.0,0.0003315,5]
[361976021,1747915854357,-420.0,0.0003315,5]
[361976022,1747915854366,-236.58,0.0003315,5]
[361976023,1747915854375,-772.47,0.0003315,5]
[361976024,1747915854384,-516.22,0.0003315,5]
[361976025,1747915854394,-318.63,0.0003315,5]
[361976026,1747915854403,-1265.2,0.0003315,5]
[361976027,1747915854412,-420.0,0.0003315,5]
[361976028,1747915854422,-420.0,0.0003315,5]
[361976029,1747915854431,-420.0,0.0003315,5]
[361976030,1747915854440,-1000.0,0.0003315,5]
[361976031,1747915854449,-1249.67,0.0003315,5]
[361976032,1747915854459,-311.62055756,0.0003315,5]
[361976033,1747915854468,-1305.59,0.0003315,5]
[361976034,1747915854477,-420.0,0.0003315,5]
[361976035,1747915854486,-420.0,0.0003315,5]
[361976036,1747915854495,-420.0,0.0003315,5]
[361976037,1747915854504,-420.0,0.0003315,5]
[361976038,1747915854513,-651.35,0.0003315,5]
[361976039,1747915854522,-420.0,0.0003315,5]
[361976040,1747915854531,-1522.02,0.0003315,5]
[361976041,1747915854540,-420.0,0.0003315,5]
[361976042,1747915854551,-844.08,0.0003315,5]
[361976043,1747915854560,-420.0,0.0003315,5]
[361976044,1747915854569,-420.0,0.0003315,5]
[361976045,1747915854578,-420.0,0.0003315,5]
[361976046,1747915854587,-420.0,0.0003315,5]
[361976047,1747915854596,-420.0,0.0003315,5]
[361976048,1747915854606,-420.0,0.0003315,5]
[361976049,1747915854615,-4317.9,0.0003315,5]
[361976050,1747915854624,-420.0,0.0003315,5]
[361976051,1747915854634,-555.49,0.0003315,5]
[361976052,1747915854644,-1281.69,0.0003315,5]
[361976053,1747915854654,-438.6,0.0003315,5]
[361976054,1747915854664,-420.0,0.0003315,5]
[361976055,1747915854674,-420.0,0.0003315,5]
[361976056,1747915854683,-409.76,0.0003315,5]
[361976057,1747915854692,-420.0,0.0003315,5]
[361976058,1747915854702,-748.33,0.0003315,5]
[361976059,1747915854712,-855.77,0.0003315,5]
[361976060,1747915854725,-420.0,0.0003315,5]
[361976061,1747915854734,-2856.78,0.0003315,5]
[361976062,1747915854744,-420.0,0.0003315,5]
[361976063,1747915854755,-420.0,0.0003315,5]
[361976064,1747915854765,-420.0,0.0003315,5]
[361976065,1747915854775,-188.2591618,0.0003315,5]
[361976066,1747915854785,-929.37,0.0003315,5]
[361976067,1747915854796,-1171.24,0.0003315,5]
[361976068,1747915854806,-420.0,0.0003315,5]
[361976069,1747915854818,-420.0,0.0003315,5]
[361976070,1747915854828,-420.0,0.0003315,5]
[361976071,1747915854838,-543.91,0.0003315,5]
[361976072,1747915854848,-876.79,0.0003315,5]
[361976073,1747915854858,-420.0,0.0003315,5]
[361976074,1747915854867,-420.0,0.0003315,5]
[361976075,1747915854880,-658.25,0.0003315,5]
[361976076,1747915854891,-713.24,0.0003315,5]
[361976077,1747915854901,-998.58,0.0003315,5]
[361976078,1747915854911,-420.0,0.0003315,5]
[361976079,1747915854920,-1143.71,0.0003315,5]
[361976080,1747915854930,-420.0,0.0003315,5]
[361976081,1747915854940,-420.0,0.0003315,5]
[361976082,1747915854949,-420.0,0.0003315,5]
[361976083,1747915854958,-1808.58,0.0003315,5]
[361976084,1747915854968,-1547.83,0.0003315,5]
[361976085,1747915854978,-484.72,0.0003315,5]
[361976086,1747915854987,-560.29,0.0003315,5]
[361976087,1747915854996,-420.0,0.0003315,5]
[361976088,1747915855005,-420.0,0.0003315,5]
[361976089,1747915855015,-1178.41,0.0003315,5]
[361976090,1747915855025,-943.15,0.0003315,5]
[361976091,1747915855034,-420.0,0.0003315,5]
[361976092,1747915855046,-420.0,0.0003315,5]
[361976093,1747915855055,-420.0,0.0003315,5]
[361976094,1747915855065,-2924.62,0.0003315,5]
[361976095,1747915855075,-420.0,0.0003315,5]
[361976096,1747915855085,-420.0,0.0003315,5]
[361976097,1747915855094,-436.84,0.0003315,5]
[361976098,1747915855103,-424.95,0.0003315,5]
[361976099,1747915855112,-843.63,0.0003315,5]
[361976100,1747915855123,-420.0,0.0003315,5]
[361976101,1747915855133,-420.0,0.0003315,5]
[361976102,1747915855142,-420.0,0.0003315,5]
[361976103,1747915855152,-420.0,0.0003315,5]
[361976104,1747915855162,-695.1,0.0003315,5]
[361976105,1747915855172,-1857.44,0.0003315,5]
[361976106,1747915855181,-420.0,0.0003315,5]
[361976107,1747915855191,-420.0,0.0003315,5]
[361976108,1747915855201,-640.27,0.0003315,5]
[361976109,1747915855213,-9497.46,0.0003315,5]
[361976110,1747915855223,-420.0,0.0003315,5]
[361976111,1747915855233,-8107.62,0.0003315,5]
[361976112,1747915855243,-268.0,0.0003315,2]
[361976113,1747915855252,-420.0,0.0003315,5]
[361976114,1747915855261,-540.01,0.0003315,5]
[361976115,1747915855271,-923.8,0.0003315,5]
[361976116,1747915855281,-150.0,0.0003315,5]
[361976117,1747915855291,-879.84,0.0003315,5]
[361976118,1747915855302,-908.59,0.0003315,5]
[361976119,1747915855311,-534.06,0.0003315,5]
[361976120,1747915855321,-420.0,0.0003315,5]
[361976121,1747915855330,-2960.76,0.0003315,5]
[361976122,1747915855341,-1195.05,0.0003315,5]
[361976123,1747915855350,-437.21,0.0003315,5]
[361976124,1747915855359,-420.0,0.0003315,5]
[361976125,1747915855369,-420.0,0.0003315,5]
[361976126,1747915855378,-420.0,0.0003315,5]
[361976127,1747915855388,-420.0,0.0003315,5]
[361976128,1747915855397,-1632.95,0.0003315,5]
[361976129,1747915855406,-500.0,0.0003315,5]
[361976130,1747915855416,-2994.3,0.0003315,5]
[361976131,1747915855425,-737.32,0.0003315,5]
[361976132,1747915855434,-528.62,0.0003315,5]
[361976133,1747915855444,-420.0,0.0003315,5]
[361976134,1747915855453,-420.0,0.0003315,5]
[361976135,1747915855462,-1064.02,0.0003315,5]
[361976136,1747915855471,-420.0,0.0003315,5]
[361976137,1747915855481,-420.0,0.0003315,5]
[361976138,1747915855490,-420.0,0.0003315,5]
[361976139,1747915855499,-420.0,0.0003315,5]
[361976140,1747915855508,-937.26,0.0003315,5]
[361976141,1747915855518,-495.92,0.0003315,5]
[361976142,1747915855527,-420.0,0.0003315,5]
[361976143,1747915855537,-5621.67,0.0003315,5]
[361976144,1747915855546,-1353.16,0.0003315,5]